fUST/lending_fUST_20240904
["ID","MTS","AMOUNT","RATE_DAILY","PERIOD"]
[337111497,1725432690900,-500.0,0.00030684,2]
[337111498,1725432690910,-500.0,0.00030684,2]
[337111499,1725432690920,-500.0,0.00030684,2]
[337111500,1725432690929,-500.0,0.00030684,2]
[337111501,1725432690939,-543.17,0.00030684,2]
[337111502,1725432690948,-6518.68,0.00030684,2]
[337111503,1725432690957,-1587.43,0.00030684,2]
[337111504,1725432690967,-881.43,0.00030684,2]
[337111505,1725432690977,-5985.78,0.00030684,2]
[337111506,1725432690987,-506.34,0.00030684,2]
[337111507,1725432690998,-500.0,0.00030684,2]
[337111508,1725432691009,-1326.71,0.00030684,2]
[337111509,1725432691020,-760.48,0.00030684,2]
[337111510,1725432691031,-500.0,0.00030684,2]
[337111511,1725432691042,-435.61551981,0.00030684,2]
[337111512,1725432691053,-1143.83,0.00030684,2]
[337111513,1725432691164,-2460.73,0.00030684,2]
[337111514,1725432691174,-500.0,0.00030684,2]
[337111515,1725432691185,-500.0,0.00030684,2]
[337111516,1725432691194,-584.31,0.00030684,2]
[337111517,1725432691204,-807.59,0.00030684,2]
[337111518,1725432691214,-1986.82,0.00030684,2]
[337111519,1725432691224,-1131.76,0.00030684,2]
[337111520,1725432691234,-500.0,0.00030684,2]
[337111521,1725432691244,-919.57,0.00030684,2]
[337111522,1725432691254,-485.78,0.00030684,2]
[337111523,1725432691263,-500.0,0.00030684,2]
[337111524,1725432691273,-500.0,0.00030684,2]
[337111525,1725432691282,-500.0,0.00030684,2]
[337111526,1725432691294,-519.17,0.00030684,2]
[337111527,1725432691306,-485.78,0.00030684,2]
[337111528,1725432691317,-500.0,0.00030684,2]
[337111529,1725432691327,-500.0,0.00030684,2]
[337111530,1725432691339,-1474.74,0.00030684,2]
[337111531,1725432691350,-500.0,0.00030684,2]
[337111532,1725432691361,-617.89,0.00030684,2]
[337111533,1725432691371,-540.48,0.00030684,2]
[337111534,1725432691381,-500.0,0.00030684,2]
[337111535,1725432691392,-500.0,0.00030684,2]
[337111536,1725432691403,-538.02,0.00030684,2]
[337111537,1725432691413,-1937.6,0.00030684,2]
[337111538,1725432691424,-588.58,0.00030684,2]
[337111539,1725432691435,-854.16,0.00030684,2]
[337111540,1725432691445,-500.0,0.00030684,2]
[337111541,1725432691455,-912.4,0.00030684,2]
[337111542,1725432691464,-500.0,0.00030684,2]
[337111543,1725432691475,-1760.41,0.00030684,2]
[337111544,1725432691487,-500.0,0.00030684,2]
[337111545,1725432691502,-500.0,0.00030684,2]
[337111546,1725432691513,-500.0,0.00030684,2]
[337111547,1725432691522,-500.0,0.00030684,2]
[337111548,1725432691532,-529.57,0.00030684,2]
[337111549,1725432691543,-2076.7,0.00030684,2]
[337111550,1725432691553,-500.0,0.00030684,2]
[337111551,1725432691564,-521.85,0.00030684,2]
[337111552,1725432691576,-500.0,0.00030684,2]
[337111553,1725432691587,-1394.78,0.00030684,2]
[337111554,1725432691598,-1309.04,0.00030684,2]
[337111555,1725432691611,-500.0,0.00030684,2]
[337111556,1725432691622,-636.29936895,0.00030684,2]
[337111557,1725432691633,-500.0,0.00030684,2]
[337111558,1725432691643,-500.0,0.00030684,2]
[337111559,1725432691652,-1026.02,0.00030684,2]
[337111560,1725432691662,-1208.37,0.00030684,2]
[337111561,1725432691671,-217.26,0.00030684,2]
[337111562,1725432691680,-500.0,0.00030684,2]
[337111563,1725432691689,-409.02089761,0.00030684,2]
[337111564,1725432691698,-1338.25,0.00030684,2]
[337111565,1725432691707,-500.0,0.00030684,2]
[337111566,1725432691716,-1167.36,0.00030684,2]
[337111567,1725432691726,-1426.7,0.00030684,2]
[337111568,1725432691736,-1038.97,0.00030684,2]
[337111569,1725432691747,-2750.23,0.00030684,2]
[337111570,1725432691757,-376.6,0.000308,7]
[337111571,1725432691766,-204.77929,0.00030853,2]
[337111572,1725432691777,-240.18141,0.00030853,2]
[337111573,1725432691790,-200.0,0.000309,6]
[337111574,1725432691801,-200.0,0.000309,6]
[337111575,1725432691812,-953.33,0.000309,14]
[337111576,1725432691822,-500.0,0.00030958,2]
[337111577,1725432691835,-574.42963212,0.00030958,2]
[337111578,1725432691846,-597.58117001,0.00030958,2]
[337111579,1725432691856,-500.0,0.00030958,2]
[337111580,1725432691867,-500.0,0.00030958,2]
[337111581,1725432691878,-172.77379307,0.00030958,2]
[337111582,1725432691890,-500.0,0.00030958,2]
[337111583,1725432691902,-500.0,0.00030958,2]
[337111584,1725432691912,-1302.87,0.00030958,2]
[337111585,1725432691923,-1156.02,0.00030958,2]
[337111586,1725432691933,-760.8,0.00030958,2]
[337111587,1725432691944,-500.0,0.00030958,2]
[337111588,1725432691954,-2082.53,0.00030958,2]
[337111589,1725432691965,-500.0,0.00030958,2]
[337111590,1725432691976,-10473.4,0.00030958,2]
[337111591,1725432691986,-500.0,0.00030958,2]
[337111592,1725432691997,-885.72,0.00030958,2]
[337111593,1725432692008,-871.3,0.00030958,2]
[337111594,1725432692020,-2887.27,0.00030958,2]
[337111595,1725432692032,-1285.92,0.00030958,2]
[337111596,1725432692041,-985.59,0.00030958,2]
[337111597,1725432692051,-4135.59,0.00030958,2]
[337111598,1725432692060,-309.69721707,0.00030958,2]
[337111599,1725432692069,-500.0,0.00030958,2]
[337111600,1725432692079,-500.0,0.00030958,2]
[337111601,1725432692089,-358.82596336,0.00030958,2]
[337111602,1725432692100,-500.0,0.00030958,2]
[337111603,1725432692114,-500.0,0.00030958,2]
[337111604,1725432692125,-543.17,0.00030958,2]
[337111605,1725432692135,-6518.68,0.00030958,2]
[337111606,1725432692145,-1587.43,0.00030958,2]
[337111607,1725432692155,-881.43,0.00030958,2]
[337111608,1725432692164,-5985.78,0.00030958,2]
[337111609,1725432692173,-506.34,0.00030958,2]
[337111610,1725432692183,-500.0,0.00030958,2]
[337111611,1725432692195,-1326.71,0.00030958,2]
[337111612,1725432692205,-760.48,0.00030958,2]
[337111613,1725432692215,-500.0,0.00030958,2]
[337111614,1725432692224,-1143.83,0.00030958,2]
[337111615,1725432692234,-2460.73,0.00030958,2]
[337111616,1725432692244,-500.0,0.00030958,2]
[337111617,1725432692253,-463.77,0.00030958,2]
[337111618,1725432692262,-584.31,0.00030958,2]
[337111619,1725432692271,-807.59,0.00030958,2]
[337111620,1725432692281,-1986.82,0.00030958,2]
[337111621,1725432692290,-1131.76,0.00030958,2]
[337111622,1725432692299,-500.0,0.00030958,2]
[337111623,1725432692309,-919.57,0.00030958,2]
[337111624,1725432692318,-500.0,0.00030958,2]
[337111625,1725432692328,-500.0,0.00030958,2]
[337111626,1725432692337,-500.0,0.00030958,2]
[337111627,1725432692346,-519.17,0.00030958,2]
[337111628,1725432692356,-500.0,0.00030958,2]
[337111629,1725432692366,-500.0,0.00030958,2]
[337111630,1725432692375,-1474.74,0.00030958,2]
[337111631,1725432692385,-443.16,0.00030958,2]
[337111632,1725432692395,-617.89,0.00030958,2]
[337111633,1725432692405,-540.48,0.00030958,2]
[337111634,1725432692414,-500.0,0.00030958,2]
[337111635,1725432692423,-500.0,0.00030958,2]
[337111636,1725432692433,-538.02,0.00030958,2]
[337111637,1725432692442,-1937.6,0.00030958,2]
[337111638,1725432692451,-588.58,0.00030958,2]
[337111639,1725432692461,-854.16,0.00030958,2]
[337111640,1725432692470,-500.0,0.00030958,2]
[337111641,1725432692479,-912.4,0.00030958,2]
[337111642,1725432692488,-500.0,0.00030958,2]
[337111643,1725432692497,-1760.41,0.00030958,2]
[337111644,1725432692507,-500.0,0.00030958,2]
[337111645,1725432692517,-500.0,0.00030958,2]
[337111646,1725432692526,-500.0,0.00030958,2]
[337111647,1725432692535,-500.0,0.00030958,2]
[337111648,1725432692544,-529.57,0.00030958,2]
[337111649,1725432692554,-2076.7,0.00030958,2]
[337111650,1725432692563,-500.0,0.00030958,2]
[337111651,1725432692572,-521.85,0.00030958,2]
[337111652,1725432692581,-310.03,0.00030958,2]
[337111653,1725432692590,-1394.78,0.00030958,2]
[337111654,1725432692599,-1309.04,0.00030958,2]
[337111655,1725432692609,-511.31,0.00030958,2]
[337111656,1725432692618,-500.0,0.00030958,2]
[337111657,1725432692628,-1026.02,0.00030958,2]
[337111658,1725432692637,-1208.37,0.00030958,2]
[337111659,1725432692647,-500.0,0.00030958,2]
[337111660,1725432692656,-1338.25,0.00030958,2]
[337111661,1725432692665,-500.0,0.00030958,2]
[337111662,1725432692675,-1167.36,0.00030958,2]
[337111663,1725432692684,-1426.7,0.00030958,2]
[337111664,1725432692693,-1038.97,0.00030958,2]
[337111665,1725432692702,-2750.23,0.00030958,2]
[337111666,1725432692712,-150.05,0.00031,5]
[337111667,1725432692721,-500.0,0.00031095,2]
[337111668,1725432692730,-184.90006614,0.00031189,5]
[337111669,1725432692740,-500.0,0.00031232,2]
[337111670,1725432692750,-500.0,0.00031232,2]
[337111671,1725432692759,-500.0,0.00031232,2]
[337111672,1725432692767,-595.90701204,0.00031232,2]
[337111673,1725432692777,-500.0,0.00031232,2]
[337111674,1725432692786,-1302.87,0.00031232,2]
[337111675,1725432692796,-1156.02,0.00031232,2]
[337111676,1725432692805,-760.8,0.00031232,2]
[337111677,1725432692814,-500.0,0.00031232,2]
[337111678,1725432692824,-2082.53,0.00031232,2]
[337111679,1725432692834,-500.0,0.00031232,2]
[337111680,1725432692844,-10473.4,0.00031232,2]
[337111681,1725432692854,-500.0,0.00031232,2]
[337111682,1725432692864,-885.72,0.00031232,2]
[337111683,1725432692874,-871.3,0.00031232,2]
[337111684,1725432692885,-2887.27,0.00031232,2]
[337111685,1725432692896,-1285.92,0.00031232,2]
[337111686,1725432692907,-985.59,0.00031232,2]
[337111687,1725432692917,-4135.59,0.00031232,2]
[337111688,1725432692926,-500.0,0.00031232,2]
[337111689,1725432692937,-500.0,0.00031232,2]
[337111690,1725432692949,-500.0,0.00031232,2]
[337111691,1725432692959,-302.60416475,0.00031232,2]
[337111692,1725432692969,-543.17,0.00031232,2]
[337111693,1725432692980,-6518.68,0.00031232,2]
[337111694,1725432692990,-1587.43,0.00031232,2]
[337111695,1725432693000,-881.43,0.00031232,2]
[337111696,1725432693011,-5985.78,0.00031232,2]
[337111697,1725432693021,-506.34,0.00031232,2]
[337111698,1725432693030,-500.0,0.00031232,2]
[337111699,1725432693040,-1326.71,0.00031232,2]
[337111700,1725432693050,-760.48,0.00031232,2]
[337111701,1725432693060,-500.0,0.00031232,2]
[337111702,1725432693069,-1143.83,0.00031232,2]
[337111703,1725432693079,-2460.73,0.00031232,2]
[337111704,1725432693089,-500.0,0.00031232,2]
[337111705,1725432693099,-584.31,0.00031232,2]
[337111706,1725432693111,-807.59,0.00031232,2]
[337111707,1725432693121,-1986.82,0.00031232,2]
[337111708,1725432693131,-1131.76,0.00031232,2]
[337111709,1725432693142,-500.0,0.00031232,2]
[337111710,1725432693152,-919.57,0.00031232,2]
[337111711,1725432693162,-500.0,0.00031232,2]
[337111712,1725432693172,-500.0,0.00031232,2]
[337111713,1725432693182,-500.0,0.00031232,2]
[337111714,1725432693193,-519.17,0.00031232,2]
[337111715,1725432693203,-500.0,0.00031232,2]
[337111716,1725432693212,-500.0,0.00031232,2]
[337111717,1725432693222,-1474.74,0.00031232,2]
[337111718,1725432693233,-617.89,0.00031232,2]
[337111719,1725432693242,-540.48,0.00031232,2]
[337111720,1725432693252,-500.0,0.00031232,2]
[337111721,1725432693262,-500.0,0.00031232,2]
[337111722,1725432693271,-538.02,0.00031232,2]
[337111723,1725432693373,-1937.6,0.00031232,2]
[337111724,1725432693385,-588.58,0.00031232,2]
[337111725,1725432693396,-854.16,0.00031232,2]
[337111726,1725432693406,-500.0,0.00031232,2]
[337111727,1725432693416,-912.4,0.00031232,2]
[337111728,1725432693426,-500.0,0.00031232,2]
[337111729,1725432693437,-1760.41,0.00031232,2]
[337111730,1725432693447,-500.0,0.00031232,2]
[337111731,1725432693456,-500.0,0.00031232,2]
[337111732,1725432693465,-500.0,0.00031232,2]
[337111733,1725432693477,-500.0,0.00031232,2]
[337111734,1725432693488,-529.57,0.00031232,2]
[337111735,1725432693497,-2076.7,0.00031232,2]
[337111736,1725432693508,-500.0,0.00031232,2]
[337111737,1725432693520,-521.85,0.00031232,2]
[337111738,1725432693531,-1394.78,0.00031232,2]
[337111739,1725432693542,-1309.04,0.00031232,2]
[337111740,1725432693553,-500.0,0.00031232,2]
[337111741,1725432693564,-1026.02,0.00031232,2]
[337111742,1725432693575,-1208.37,0.00031232,2]
[337111743,1725432693586,-500.0,0.00031232,2]
[337111744,1725432693595,-1338.25,0.00031232,2]
[337111745,1725432693605,-500.0,0.00031232,2]
[337111746,1725432693614,-1167.36,0.00031232,2]
[337111747,1725432693624,-1426.7,0.00031232,2]
[337111748,1725432693634,-1038.97,0.00031232,2]
[337111749,1725432693643,-2750.23,0.00031232,2]
[337111750,1725432693653,-501.82733779,0.00031369,2]
[337111751,1725432693663,-363.26498917,0.00031433,2]
[337111752,1725432693672,-25299.411,0.00031433,30]
[337111753,1725432693682,-649.5305819,0.00031506,2]
[337111754,1725432693691,-500.0,0.00031506,2]
[337111755,1725432693702,-500.0,0.00031506,2]
[337111756,1725432693711,-1302.87,0.00031506,2]
[337111757,1725432693721,-1156.02,0.00031506,2]
[337111758,1725432693730,-760.8,0.00031506,2]
[337111759,1725432693740,-634.29630399,0.00031506,2]
[337111760,1725432693750,-2082.53,0.00031506,2]
[337111761,1725432693760,-500.0,0.00031506,2]
[337111762,1725432693770,-10473.4,0.00031506,2]
[337111763,1725432693779,-241.265692,0.00031506,2]
[337111764,1725432693790,-885.72,0.00031506,2]
[337111765,1725432693799,-871.3,0.00031506,2]
[337111766,1725432693809,-2887.27,0.00031506,2]
[337111767,1725432693819,-1285.92,0.00031506,2]
[337111768,1725432693829,-985.59,0.00031506,2]
[337111769,1725432693839,-4135.59,0.00031506,2]
[337111770,1725432693848,-500.0,0.00031506,2]
[337111771,1725432693860,-500.0,0.00031506,2]
[337111772,1725432693870,-500.0,0.00031506,2]
[337111773,1725432693881,-543.17,0.00031506,2]
[337111774,1725432693891,-6518.68,0.00031506,2]
[337111775,1725432693901,-1587.43,0.00031506,2]
[337111776,1725432693913,-881.43,0.00031506,2]
[337111777,1725432693923,-5985.78,0.00031506,2]
[337111778,1725432693934,-506.34,0.00031506,2]
[337111779,1725432693944,-500.0,0.00031506,2]
[337111780,1725432693954,-1326.71,0.00031506,2]
[337111781,1725432693964,-760.48,0.00031506,2]
[337111782,1725432693974,-500.0,0.00031506,2]
[337111783,1725432693985,-1143.83,0.00031506,2]
[337111784,1725432693995,-2460.73,0.00031506,2]
[337111785,1725432694006,-500.0,0.00031506,2]
[337111786,1725432694016,-584.31,0.00031506,2]
[337111787,1725432694025,-807.59,0.00031506,2]
[337111788,1725432694035,-1986.82,0.00031506,2]
[337111789,1725432694046,-1131.76,0.00031506,2]
[337111790,1725432694056,-500.0,0.00031506,2]
[337111791,1725432694066,-919.57,0.00031506,2]
[337111792,1725432694076,-306.33,0.00031506,2]
[337111793,1725432694086,-500.0,0.00031506,2]
[337111794,1725432694097,-500.0,0.00031506,2]
[337111795,1725432694109,-317.2435825,0.00031506,2]
[337111796,1725432694172,-53.06041585,0.0002497,3]
[337111797,1725432694184,-304.26958415,0.0002497,3]
[337111798,1725432694195,-714.66,0.0002634,3]
[337111799,1725432694205,-263.59927185,0.00027152,3]
[337111800,1725432694810,323.84768475,0.00024869,2]
[337111807,1725433054317,1121.89,0.000201,2]
[337111812,1725433556193,-308.89022971,0.00021123,2]
[337111813,1725433559160,-156.28169214,0.00021123,2]
[337111814,1725433559186,-181.1337279,0.00023938,2]
[337111815,1725433559211,-309.521094,0.0002412,2]
[337111816,1725433559233,-501.431931,0.00024658,2]
[337111817,1725433559256,-280.34988496,0.00024827,2]
[337111818,1725433633289,-410.19205,0.00024658,2]
[337111819,1725433633310,-1865.3594487,0.00024827,2]
[337111820,1725433637111,-198.13153784,0.00024827,2]
[337111821,1725433637133,-190.85108435,0.00024869,2]
[337111822,1725433637155,-300.0,0.00024883,2]
[337111823,1725433637178,-300.0,0.00024883,2]
[337111824,1725433637201,-216.84049871,0.00024884,2]
[337111825,1725433643102,-1599.86534853,0.00024884,2]
[337111826,1725433652090,-870.869616,0.00024884,2]
[337111862,1725433838178,-260.0,0.00025,2]
[337111863,1725433838188,-300.0,0.00025029,2]
[337111864,1725433838198,-133.74774636,0.0002503,2]
[337111865,1725433838222,-24766.25225364,0.0002503,2]
[337111866,1725433838235,-204.478258,0.00025107,2]
[337111867,1725433838245,-204.478258,0.00025176,2]
[337111868,1725433838254,-204.478258,0.00025245,2]
[337111869,1725433838265,-204.693558,0.00025312,2]
[337111870,1725433838276,-204.478258,0.00025314,2]
[337111871,1725433838287,-204.478258,0.00025383,2]
[337111872,1725433838298,-204.478258,0.00025452,2]
[337111873,1725433838308,-204.478258,0.0002552,2]
[337111874,1725433838319,-204.478258,0.00025589,2]
[337111875,1725433838331,-204.478258,0.00025658,2]
[337111876,1725433838345,-204.478258,0.00025727,2]
[337111877,1725433838356,-204.478258,0.00025796,2]
[337111878,1725433838366,-204.478258,0.00025865,2]
[337111879,1725433838377,-204.478258,0.00025934,2]
[337111880,1725433838387,-204.478258,0.00026002,2]
[337111881,1725433838401,-617.19782547,0.00026014,2]
[337111882,1725433838411,-204.478258,0.00026071,2]
[337111883,1725433838421,-204.478258,0.0002614,2]
[337111885,1725433838432,-204.478258,0.00026209,2]
[337111886,1725433838441,-204.478258,0.00026278,2]
[337111889,1725433838451,-2995.74407868,0.00026315,2]
[337111890,1725433838460,-204.478258,0.00026347,2]
[337111891,1725433838471,-204.478258,0.00026415,2]
[337111892,1725433838481,-1000.0,0.00027,27]
[337111893,1725433838490,-173.47579641,0.00027277,2]
[337111894,1725433838500,-1000.0,0.00027287,2]
[337111895,1725433838510,-27092.02456572,0.00027287,3]
[337111896,1725433838519,-173.4757964,0.00027297,2]
[337111897,1725433838528,-585.39813597,0.00027297,2]
[337111898,1725433838538,-178.67,0.00027356,3]
[337111899,1725433838547,-546.74000856,0.00027365,2]
[337111900,1725433838557,-165.81158835,0.00027365,2]
[337111901,1725433838566,-500.0,0.00027365,2]
[337111902,1725433838575,-500.0,0.00027365,2]
[337111903,1725433838585,-500.0,0.00027365,2]
[337111904,1725433838595,-500.0,0.00027365,2]
[337111905,1725433838604,-286.80019538,0.00027365,2]
[337111906,1725433838613,-529.26868894,0.00027365,2]
[337111907,1725433838623,-207.0287044,0.00027365,2]
[337111908,1725433838632,-500.0,0.00027365,2]
[337111909,1725433838641,-500.0,0.00027365,2]
[337111910,1725433838651,-500.0,0.00027365,2]
[337111911,1725433838660,-500.0,0.00027365,2]
[337111912,1725433838670,-551.30036785,0.00027365,2]
[337111913,1725433838680,-25567.72228911,0.00027366,15]
[337111914,1725433838690,-144944.73897,0.00027366,3]
[337111915,1725433838699,-224612.94722534,0.00027366,2]
[337111916,1725433838774,-34.32113664,0.00027366,2]
[337111917,1725433838786,-2669.49321411,0.00027366,2]
[337111923,1725433840241,-536.01,0.00027356,3]
[337111924,1725433840252,-1356.15,0.00027357,3]
[337111925,1725433840261,-118873.10781891,0.00027366,2]
[337111926,1725433840271,-75711.83291137,0.00027367,3]
[337111972,1725434737138,-300.0,0.00024599,2]
[337111973,1725434737161,-1752.29326753,0.000246,2]
[337111974,1725434826106,-300.0,0.00024599,2]
[337111975,1725434826129,-2476.0549805,0.000246,2]
[337111976,1725434830103,-5605.65098949,0.000246,2]
[337111977,1725434835106,-1283.92405843,0.000246,2]
[337111978,1725434839110,-453.07670405,0.000246,2]
[337111979,1725434839132,-144.10392553,0.00024658,2]
[337111980,1725434840148,-225.0,0.00024658,2]
[337111987,1725434960110,-44.00024347,0.00024658,2]
[337111988,1725434973110,-844.19028642,0.00024898,2]
[337111992,1725434989392,184.671544,0.00022951,2]
[337112015,1725435032343,-1277.10634219,0.0002499,3]
[337112049,1725435038391,-1294.42365781,0.0002499,3]
[337112050,1725435038402,-2142.94,0.0002499,3]
[337112051,1725435038411,-1785.78,0.0002499,3]
[337112052,1725435038421,-1488.15,0.0002499,3]
[337112053,1725435038430,-382.71800599,0.00024999,2]
[337112054,1725435038440,-500.0,0.00024999,2]
[337112055,1725435038449,-600.76013677,0.00024999,2]
[337112056,1725435038459,-500.0,0.00024999,2]
[337112057,1725435038469,-283.47781865,0.00024999,2]
[337112058,1725435038479,-358986.98238543,0.00025,2]
[337112059,1725435038488,-37062.52874585,0.00025,2]
[337112060,1725435038499,-10364.0,0.00025,2]
[337112061,1725435038510,-12783.86114456,0.0002509,15]
[337112062,1725435038520,-123295.75534643,0.0002509,2]
[337112063,1725435038529,-10675.92213514,0.000251,15]
[337112064,1725435038539,-89774.78597762,0.000251,14]
[337112065,1725435038563,-9312.56180671,0.000251,14]
[337112066,1725435038575,-658.81062331,0.000251,14]
[337112069,1725435040421,-2817.5638092,0.000251,14]
[337112070,1725435040433,-195941.09073028,0.000251,14]
[337112104,1725435046697,-90043.90824873,0.00024998,2]
[337112106,1725435068628,32.55656958,0.0002382,2]
[337112107,1725435068649,159.25483185,0.0002382,2]
[337112108,1725435068673,12.88215657,0.0002382,2]
[337112198,1725435940119,-1421.19622345,0.00023835,2]
[337112199,1725436027120,-782.8233417,0.00023803,2]
[337112200,1725436027145,-300.0,0.00023834,2]
[337112201,1725436027170,-2434.7066915,0.00023835,2]
[337112202,1725436032108,-1087.71473678,0.00023835,2]
[337112204,1725436035118,-3999.167057,0.00023835,2]
[337112205,1725436042237,-450.0,0.00023835,2]
[337112206,1725436045119,-1497.40181202,0.00023835,2]
[337112207,1725436145088,-181.133726,0.00023576,2]
[337112208,1725436145110,-11447.73898218,0.00023835,2]
[337112209,1725436154125,-2562.07449707,0.00023835,2]
[337112210,1725436154146,-168.13735861,0.00024323,2]
[337112211,1725436154169,-5386.23889752,0.00024606,2]
[337112212,1725436154191,-392.448961,0.00024658,2]
[337112213,1725436154215,-5386.23889753,0.00024687,2]
[337112214,1725436154236,-150.6975635,0.00024859,2]
[337112215,1725436154257,-2621.27606881,0.00024867,2]
[337112216,1725436154277,-359.0924047,0.00024873,2]
[337112217,1725436161107,-164.45238096,0.00024873,2]
[337112244,1725436238603,-323.84768476,0.00024773,2]
[337112245,1725436238612,-56.85345144,0.00024873,2]
[337112246,1725436238621,-793.84403,0.00024948,2]
[337112247,1725436238630,-893.35,0.00024948,3]
[337112248,1725436238639,-1240.13,0.00024949,3]
[337112249,1725436238652,-1033.44,0.00024949,3]
[337112250,1725436238661,-861.2,0.00024949,3]
[337112251,1725436238670,-500.0,0.00024957,2]
[337112252,1725436238679,-267.9026042,0.00024957,2]
[337112253,1725436238689,-620.53209574,0.00024957,2]
[337112254,1725436238698,-187.53182294,0.00024957,2]
[337112255,1725436238707,-6391.93057228,0.00024958,15]
[337112256,1725436238721,-414557.040249,0.00024958,3]
[337112257,1725436238730,-118873.107821,0.00024958,2]
[337112258,1725436238741,-200.84843461,0.00024973,2]
[337112259,1725436238750,-503.00748603,0.00024973,2]
[337112260,1725436238759,-580.53020496,0.00024973,2]
[337112261,1725436238770,-249157.54966899,0.00024998,2]
[337112262,1725436238780,-150.112233,0.00025,2]
[337112263,1725436238789,-150.112234,0.00025,4]
[337112264,1725436238799,-43864.03705288,0.000251,14]
[337112265,1725436238809,-537.51167455,0.00025598,2]
[337112266,1725436238819,-150.69756348,0.0002593,2]
[337112267,1725436238829,-268.096753,0.000264,8]
[337112268,1725436238838,-13299.38378041,0.000266,10]
[337112269,1725436238848,-150.112233,0.000266,7]
[337112270,1725436238857,-150.112233,0.000269,5]
[337112271,1725436238867,-7429.93198702,0.00027,120]
[337112272,1725436238876,-151.0,0.00027,2]
[337112273,1725436238886,-165.0,0.00027,2]
[337112274,1725436238901,-150.69756348,0.00027,2]
[337112275,1725436238911,-5337.96106757,0.000271,15]
[337112276,1725436238920,-190980.32175184,0.000271,120]
[337112277,1725436238930,-150.112233,0.000271,8]
[337112278,1725436238939,-150.112233,0.000271,10]
[337112279,1725436238949,-150.112233,0.000271,7]
[337112280,1725436238959,-150.112233,0.000271,6]
[337112281,1725436238969,-150.112233,0.000271,5]
[337112282,1725436238978,-150.112233,0.000271,9]
[337112283,1725436238988,-150.112233,0.000271,7]
[337112284,1725436238998,-150.112233,0.000271,10]
[337112285,1725436239007,-150.112233,0.000271,7]
[337112286,1725436239017,-150.112233,0.000271,5]
[337112287,1725436239026,-2312.39516362,0.0002736,21]
[337112288,1725436239035,-2733.07486677,0.00027369,2]
[337112289,1725436239046,-500.0,0.00027397,2]
[337112290,1725436239056,-506.3094411,0.00027397,2]
[337112291,1725436239066,-500.0,0.00027397,2]
[337112292,1725436239076,-500.0,0.00027397,2]
[337112293,1725436239085,-500.0,0.00027397,2]
[337112294,1725436239096,-500.0,0.00027397,2]
[337112295,1725436239106,-500.0,0.00027397,2]
[337112296,1725436239117,-500.0,0.00027397,2]
[337112297,1725436239126,-2710.57,0.00027397,2]
[337112298,1725436239136,-500.0,0.00027397,2]
[337112299,1725436239150,-500.0,0.00027397,2]
[337112300,1725436239160,-500.0,0.00027397,2]
[337112301,1725436239176,-500.0,0.00027397,2]
[337112302,1725436239186,-500.0,0.00027397,2]
[337112303,1725436239197,-502.31174423,0.00027397,2]
[337112304,1725436239206,-645.07954192,0.00027397,2]
[337112305,1725436239216,-500.0,0.00027397,2]
[337112306,1725436239228,-500.0,0.00027397,2]
[337112307,1725436239238,-500.0,0.00027397,2]
[337112308,1725436239250,-500.0,0.00027397,2]
[337112309,1725436239260,-500.0,0.00027397,2]
[337112310,1725436239269,-500.0,0.00027397,2]